[Event "Titled Tuesday Blitz November 15 Early 2022"]
[White "Safin, Robert"]
[Black "Ahn, Hongjin"]
[WhiteFideId "34189120"]
[BlackFideId "13201492"]
[WhiteElo "2253"]
[BlackElo "2182"]
[Result "0-1"]
[Round "05"]
[TimeControl "180+1"]
[Date "2022.11.16"]
[WhiteClock "0:00:03"]
[BlackClock "0:00:14"]

1. e4 {[%clk 0:03:00]}  c5 {[%clk 0:03:00]} 2. c3 {[%clk 0:02:57]}  Nf6 {[%clk 0:02:59]} 3. e5 {[%clk 0:02:56]}  Nd5 {[%clk 0:03:00]} 4. Nf3 {[%clk 0:02:56]}  Nc6 {[%clk 0:02:59]} 5. Na3 {[%clk 0:02:52]}  d6 {[%clk 0:02:57]} 6. exd6 {[%clk 0:02:51]}  e6 {[%clk 0:02:57]} 7. Nc4 {[%clk 0:02:50]}  Bxd6 {[%clk 0:02:56]} 8. Nxd6+ {[%clk 0:02:50]}  Qxd6 {[%clk 0:02:57]} 9. d4 {[%clk 0:02:50]}  cxd4 {[%clk 0:02:57]} 10. Nxd4 {[%clk 0:02:50]}  O-O {[%clk 0:02:56]} 11. Nxc6 {[%clk 0:02:36]}  Qxc6 {[%clk 0:02:54]} 12. Bd3 {[%clk 0:02:34]}  b6 {[%clk 0:02:23]} 13. O-O {[%clk 0:02:34]}  Bb7 {[%clk 0:02:24]} 14. Be4 {[%clk 0:02:29]}  Rfd8 {[%clk 0:02:12]} 15. Qh5 {[%clk 0:02:05]}  g6 {[%clk 0:02:07]} 16. Qh4 {[%clk 0:02:05]}  Qc4 {[%clk 0:01:37]} 17. Bg5 {[%clk 0:01:58]}  f6 {[%clk 0:01:27]} 18. Bf3 {[%clk 0:01:33]}  Ba6 {[%clk 0:00:56]} 19. Bxf6 {[%clk 0:01:03]}  Qxh4 {[%clk 0:00:53]} 20. Bxh4 {[%clk 0:01:04]}  Bxf1 {[%clk 0:00:51]} 21. Bxd8 {[%clk 0:01:00]}  Bxg2 {[%clk 0:00:41]} 22. Bxg2 {[%clk 0:00:59]}  Rxd8 {[%clk 0:00:41]} 23. Rd1 {[%clk 0:00:59]}  Rd7 {[%clk 0:00:33]} 24. Rd4 {[%clk 0:00:44]}  Kf7 {[%clk 0:00:31]} 25. Kf1 {[%clk 0:00:44]}  Ke7 {[%clk 0:00:28]} 26. Ke2 {[%clk 0:00:41]}  g5 {[%clk 0:00:27]} 27. Bxd5 {[%clk 0:00:16]}  exd5 {[%clk 0:00:28]} 28. h4 {[%clk 0:00:11]}  h6 {[%clk 0:00:27]} 29. Kf3 {[%clk 0:00:10]}  Ke6 {[%clk 0:00:21]} 30. Kg4 {[%clk 0:00:09]}  gxh4 {[%clk 0:00:18]} 31. Kh5 {[%clk 0:00:07]}  Rf7 {[%clk 0:00:16]} 32. f4 {[%clk 0:00:03]}  h3 {[%clk 0:00:14]} 0-1


[Site "https://www.chess.com"]

[Event "Titled Tuesday Blitz November 15 Early 2022"]
[White "Sanchez, Robert"]
[Black "Khamdamova, Afruza"]
[WhiteFideId "2034360"]
[BlackFideId "14210444"]
[WhiteElo "2297"]
[BlackElo "2018"]
[Result "1-0"]
[Round "05"]
[TimeControl "180+1"]
[Date "2022.11.16"]
[WhiteClock "0:00:13"]
[BlackClock "0:00:13"]

1. e4 {[%clk 0:03:00]}  e5 {[%clk 0:02:59]} 2. Nf3 {[%clk 0:03:01]}  Nf6 {[%clk 0:02:59]} 3. Nxe5 {[%clk 0:03:00]}  d6 {[%clk 0:02:59]} 4. Nf3 {[%clk 0:03:01]}  Nxe4 {[%clk 0:03:00]} 5. Nc3 {[%clk 0:03:01]}  Nxc3 {[%clk 0:02:59]} 6. dxc3 {[%clk 0:03:00]}  Be7 {[%clk 0:02:59]} 7. Bd3 {[%clk 0:02:59]}  Nc6 {[%clk 0:02:58]} 8. Bf4 {[%clk 0:02:57]}  Be6 {[%clk 0:02:57]} 9. Qe2 {[%clk 0:02:56]}  Qd7 {[%clk 0:02:54]} 10. h3 {[%clk 0:02:55]}  h6 {[%clk 0:02:51]} 11. a4 {[%clk 0:02:52]}  a6 {[%clk 0:02:44]} 12. Nd4 {[%clk 0:02:47]}  Nxd4 {[%clk 0:02:42]} 13. cxd4 {[%clk 0:02:48]}  d5 {[%clk 0:02:39]} 14. O-O {[%clk 0:02:43]}  O-O {[%clk 0:02:38]} 15. b3 {[%clk 0:02:39]}  Bf6 {[%clk 0:02:37]} 16. c3 {[%clk 0:02:35]}  Rfe8 {[%clk 0:02:35]} 17. Qf3 {[%clk 0:02:34]}  Be7 {[%clk 0:02:09]} 18. Qh5 {[%clk 0:02:22]}  Bf8 {[%clk 0:02:04]} 19. Rfe1 {[%clk 0:02:16]}  g6 {[%clk 0:01:55]} 20. Qf3 {[%clk 0:02:05]}  Bf5 {[%clk 0:01:35]} 21. Bxf5 {[%clk 0:01:54]}  Qxf5 {[%clk 0:01:35]} 22. Qg3 {[%clk 0:01:27]}  c6 {[%clk 0:01:30]} 23. Bd6 {[%clk 0:01:21]}  Bg7 {[%clk 0:01:26]} 24. Bc5 {[%clk 0:01:16]}  Re6 {[%clk 0:01:20]} 25. Qc7 {[%clk 0:01:11]}  b5 {[%clk 0:01:02]} 26. axb5 {[%clk 0:01:02]}  cxb5 {[%clk 0:01:02]} 27. Rxe6 {[%clk 0:00:46]}  fxe6 {[%clk 0:00:55]} 28. Rxa6 {[%clk 0:00:40]}  Rxa6 {[%clk 0:00:49]} 29. Qc8+ {[%clk 0:00:39]}  Bf8 {[%clk 0:00:50]} 30. Qxa6 {[%clk 0:00:35]}  Qb1+ {[%clk 0:00:34]} 31. Kh2 {[%clk 0:00:35]}  Qc1 {[%clk 0:00:33]} 32. Qxe6+ {[%clk 0:00:34]}  Kh8 {[%clk 0:00:28]} 33. Qe3 {[%clk 0:00:13]}  Qxe3 {[%clk 0:00:20]} 34. fxe3 {[%clk 0:00:14]}  Bg7 {[%clk 0:00:19]} 35. Kg3 {[%clk 0:00:14]}  Bf6 {[%clk 0:00:16]} 36. Kf3 {[%clk 0:00:12]}  Kg7 {[%clk 0:00:15]} 37. e4 {[%clk 0:00:12]}  dxe4+ {[%clk 0:00:15]} 38. Kxe4 {[%clk 0:00:13]}  Kf7 {[%clk 0:00:15]} 39. Kd5 {[%clk 0:00:13]}  Bg5 {[%clk 0:00:13]} 40. Kc6 {[%clk 0:00:12]}  Bd2 {[%clk 0:00:13]} 41. Bb4 {[%clk 0:00:13]} 1-0


[Site "https://www.chess.com"]

[Event "Titled Tuesday Blitz November 15 Early 2022"]
[White "Sargsyan, Anna M."]
[Black "Grapsa, Georgia"]
[WhiteFideId "13308130"]
[BlackFideId "4206436"]
[WhiteElo "2284"]
[BlackElo "1877"]
[Result "1-0"]
[Round "05"]
[TimeControl "180+1"]
[Date "2022.11.16"]
[WhiteClock "0:01:13"]
[BlackClock "0:00:13"]

1. d4 {[%clk 0:03:00]}  d5 {[%clk 0:02:56]} 2. c4 {[%clk 0:03:00]}  e6 {[%clk 0:02:56]} 3. Nc3 {[%clk 0:03:00]}  f5 {[%clk 0:02:55]} 4. g4 {[%clk 0:02:56]}  c6 {[%clk 0:02:47]} 5. gxf5 {[%clk 0:02:55]}  exf5 {[%clk 0:02:48]} 6. Nh3 {[%clk 0:02:52]}  Nf6 {[%clk 0:02:46]} 7. Bg5 {[%clk 0:02:51]}  Bb4 {[%clk 0:02:33]} 8. e3 {[%clk 0:02:49]}  Be6 {[%clk 0:02:15]} 9. Nf4 {[%clk 0:02:48]}  Bf7 {[%clk 0:01:57]} 10. cxd5 {[%clk 0:02:48]}  Bxc3+ {[%clk 0:01:57]} 11. bxc3 {[%clk 0:02:47]}  cxd5 {[%clk 0:01:57]} 12. Qb3 {[%clk 0:02:45]}  b6 {[%clk 0:01:54]} 13. Bb5+ {[%clk 0:02:41]}  Kf8 {[%clk 0:01:48]} 14. Bxf6 {[%clk 0:02:35]}  gxf6 {[%clk 0:01:40]} 15. Rg1 {[%clk 0:02:31]}  Rg8 {[%clk 0:01:35]} 16. Qb4+ {[%clk 0:02:30]}  Qe7 {[%clk 0:01:31]} 17. O-O-O {[%clk 0:02:05]}  a6 {[%clk 0:01:19]} 18. Bd3 {[%clk 0:01:56]}  Qxb4 {[%clk 0:01:09]} 19. cxb4 {[%clk 0:01:56]}  Nc6 {[%clk 0:01:09]} 20. Bxf5 {[%clk 0:01:53]}  Nxb4 {[%clk 0:01:06]} 21. a3 {[%clk 0:01:54]}  Nc6 {[%clk 0:01:03]} 22. Bxh7 {[%clk 0:01:54]}  Rxg1 {[%clk 0:01:03]} 23. Rxg1 {[%clk 0:01:54]}  Ke7 {[%clk 0:00:58]} 24. Rg7 {[%clk 0:01:43]}  Nd8 {[%clk 0:00:44]} 25. Bg6 {[%clk 0:01:34]}  Kf8 {[%clk 0:00:34]} 26. Rh7 {[%clk 0:01:34]}  Bxg6 {[%clk 0:00:31]} 27. Nxg6+ {[%clk 0:01:33]}  Kg8 {[%clk 0:00:29]} 28. Rd7 {[%clk 0:01:33]}  Rc8+ {[%clk 0:00:22]} 29. Kd2 {[%clk 0:01:33]}  Rb8 {[%clk 0:00:16]} 30. h4 {[%clk 0:01:32]}  Nf7 {[%clk 0:00:15]} 31. h5 {[%clk 0:01:32]}  Kg7 {[%clk 0:00:15]} 32. Rxd5 {[%clk 0:01:28]}  b5 {[%clk 0:00:15]} 33. Rd7 {[%clk 0:01:27]}  a5 {[%clk 0:00:15]} 34. Nf4 {[%clk 0:01:25]}  b4 {[%clk 0:00:14]} 35. axb4 {[%clk 0:01:26]}  axb4 {[%clk 0:00:15]} 36. Kc2 {[%clk 0:01:26]}  b3+ {[%clk 0:00:15]} 37. Kb2 {[%clk 0:01:27]}  Kf8 {[%clk 0:00:15]} 38. Ne6+ {[%clk 0:01:21]}  Kg8 {[%clk 0:00:15]} 39. e4 {[%clk 0:01:19]}  Nh6 {[%clk 0:00:13]} 40. f4 {[%clk 0:01:16]}  Ng4 {[%clk 0:00:13]} 41. Rg7+ {[%clk 0:01:13]} 1-0


[Site "https://www.chess.com"]

[Event "Titled Tuesday Blitz November 15 Early 2022"]
[White "Shapiro, Daniel"]
[Black "Shuvalov, Evgenij"]
[WhiteFideId "2001780"]
[BlackFideId "4187237"]
[WhiteElo "2298"]
[BlackElo "2049"]
[Result "0-1"]
[Round "05"]
[TimeControl "180+1"]
[Date "2022.11.16"]
[WhiteClock "0:00:03"]
[BlackClock "0:00:33"]

1. d4 {[%clk 0:02:28]}  Nf6 {[%clk 0:02:58]} 2. c4 {[%clk 0:02:26]}  c5 {[%clk 0:02:57]} 3. d5 {[%clk 0:02:26]}  b5 {[%clk 0:02:57]} 4. cxb5 {[%clk 0:02:26]}  a6 {[%clk 0:02:58]} 5. e3 {[%clk 0:02:26]}  Bb7 {[%clk 0:02:56]} 6. Nc3 {[%clk 0:02:26]}  Qa5 {[%clk 0:02:54]} 7. Bd2 {[%clk 0:02:19]}  axb5 {[%clk 0:02:53]} 8. e4 {[%clk 0:01:41]}  b4 {[%clk 0:02:48]} 9. e5 {[%clk 0:01:16]}  Nxd5 {[%clk 0:02:37]} 10. Nxd5 {[%clk 0:01:15]}  Bxd5 {[%clk 0:02:38]} 11. Nf3 {[%clk 0:01:15]}  e6 {[%clk 0:02:37]} 12. Be2 {[%clk 0:01:07]}  Be7 {[%clk 0:02:35]} 13. O-O {[%clk 0:01:06]}  O-O {[%clk 0:02:36]} 14. a3 {[%clk 0:01:06]}  Nc6 {[%clk 0:02:25]} 15. Qc2 {[%clk 0:01:02]}  Qc7 {[%clk 0:01:44]} 16. axb4 {[%clk 0:00:59]}  cxb4 {[%clk 0:01:38]} 17. Bf4 {[%clk 0:00:55]}  Qb7 {[%clk 0:01:33]} 18. Rad1 {[%clk 0:00:34]}  Rfc8 {[%clk 0:01:28]} 19. Qd3 {[%clk 0:00:28]}  b3 {[%clk 0:01:24]} 20. h4 {[%clk 0:00:26]}  Nb4 {[%clk 0:01:20]} 21. Qe3 {[%clk 0:00:18]}  Ra2 {[%clk 0:01:03]} 22. Rd2 {[%clk 0:00:14]}  Rc2 {[%clk 0:00:58]} 23. Rfd1 {[%clk 0:00:13]}  Raxb2 {[%clk 0:00:57]} 24. Nd4 {[%clk 0:00:09]}  Rxd2 {[%clk 0:00:57]} 25. Rxd2 {[%clk 0:00:09]}  Rxd2 {[%clk 0:00:57]} 26. Qxd2 {[%clk 0:00:09]}  Nc6 {[%clk 0:00:55]} 27. Nf3 {[%clk 0:00:07]}  b2 {[%clk 0:00:54]} 28. Bd3 {[%clk 0:00:07]}  b1=Q+ {[%clk 0:00:52]} 29. Bxb1 {[%clk 0:00:07]}  Qxb1+ {[%clk 0:00:53]} 30. Kh2 {[%clk 0:00:08]}  Qf5 {[%clk 0:00:39]} 31. Qe3 {[%clk 0:00:06]}  h6 {[%clk 0:00:37]} 32. Nd2 {[%clk 0:00:05]}  Bxh4 {[%clk 0:00:34]} 33. f3 {[%clk 0:00:05]}  Bg5 {[%clk 0:00:32]} 34. Bxg5 {[%clk 0:00:04]}  hxg5 {[%clk 0:00:33]} 35. Nf1 {[%clk 0:00:03]}  Qxe5+ {[%clk 0:00:33]} 0-1


[Site "https://www.chess.com"]

[Event "Titled Tuesday Blitz November 15 Early 2022"]
[White "Shimanov, Aleksandr"]
[Black "Budrewicz, Krzysztof"]
[WhiteFideId "4198603"]
[BlackFideId "1127950"]
[WhiteElo "2605"]
[BlackElo "2187"]
[Result "1-0"]
[Round "05"]
[TimeControl "180+1"]
[Date "2022.11.16"]
[WhiteClock "0:00:17"]
[BlackClock "0:00:08"]

1. e4 {[%clk 0:03:00]}  g6 {[%clk 0:02:58]} 2. d4 {[%clk 0:02:58]}  Bg7 {[%clk 0:02:58]} 3. c4 {[%clk 0:02:57]}  d6 {[%clk 0:02:57]} 4. Nc3 {[%clk 0:02:57]}  Nf6 {[%clk 0:02:55]} 5. f3 {[%clk 0:02:48]}  O-O {[%clk 0:02:55]} 6. Be3 {[%clk 0:02:47]}  a6 {[%clk 0:02:53]} 7. Qd2 {[%clk 0:02:47]}  Nc6 {[%clk 0:02:53]} 8. Bd3 {[%clk 0:02:47]}  Na5 {[%clk 0:02:39]} 9. Rc1 {[%clk 0:02:39]}  Nd7 {[%clk 0:02:29]} 10. Nge2 {[%clk 0:02:38]}  c5 {[%clk 0:02:29]} 11. b3 {[%clk 0:02:36]}  Rb8 {[%clk 0:02:27]} 12. O-O {[%clk 0:02:35]}  Nc6 {[%clk 0:02:24]} 13. d5 {[%clk 0:02:24]}  Nd4 {[%clk 0:02:22]} 14. Bb1 {[%clk 0:02:19]}  Nxe2+ {[%clk 0:02:17]} 15. Qxe2 {[%clk 0:02:19]}  b5 {[%clk 0:02:15]} 16. f4 {[%clk 0:02:17]}  bxc4 {[%clk 0:02:10]} 17. bxc4 {[%clk 0:02:16]}  Qa5 {[%clk 0:02:09]} 18. Bd2 {[%clk 0:02:15]}  Qa3 {[%clk 0:02:06]} 19. Rf3 {[%clk 0:02:07]}  Qb2 {[%clk 0:01:28]} 20. h3 {[%clk 0:01:54]}  Nf6 {[%clk 0:01:22]} 21. Re1 {[%clk 0:01:32]}  Bd7 {[%clk 0:00:47]} 22. e5 {[%clk 0:01:26]}  Ne8 {[%clk 0:00:47]} 23. Kh2 {[%clk 0:01:00]}  Nc7 {[%clk 0:00:45]} 24. Qf2 {[%clk 0:00:46]}  Qb4 {[%clk 0:00:35]} 25. Nb5 {[%clk 0:00:38]}  Qxc4 {[%clk 0:00:29]} 26. Nxc7 {[%clk 0:00:38]}  Rb7 {[%clk 0:00:23]} 27. e6 {[%clk 0:00:38]}  fxe6 {[%clk 0:00:20]} 28. Nxe6 {[%clk 0:00:37]}  Bxe6 {[%clk 0:00:20]} 29. dxe6 {[%clk 0:00:37]}  d5 {[%clk 0:00:19]} 30. f5 {[%clk 0:00:35]}  d4 {[%clk 0:00:16]} 31. fxg6 {[%clk 0:00:34]}  Rf6 {[%clk 0:00:12]} 32. gxh7+ {[%clk 0:00:33]}  Kh8 {[%clk 0:00:13]} 33. Rxf6 {[%clk 0:00:29]}  Bxf6 {[%clk 0:00:12]} 34. Qxf6+ {[%clk 0:00:17]}  exf6 {[%clk 0:00:09]} 35. e7 {[%clk 0:00:18]}  Rxe7 {[%clk 0:00:09]} 36. Rxe7 {[%clk 0:00:18]}  Qb5 {[%clk 0:00:09]} 37. Bg6 {[%clk 0:00:18]}  c4 {[%clk 0:00:07]} 38. Re8+ {[%clk 0:00:17]}  Qxe8 {[%clk 0:00:07]} 39. Bxe8 {[%clk 0:00:18]}  c3 {[%clk 0:00:08]} 40. Be1 {[%clk 0:00:18]}  d3 {[%clk 0:00:08]} 41. Bxc3 {[%clk 0:00:17]} 1-0


[Site "https://www.chess.com"]

[Event "Titled Tuesday Blitz November 15 Early 2022"]
[White "Smietanska, Wiktoria"]
[Black "Fernandez Garcia, Gumersindo"]
[WhiteFideId "21869359"]
[BlackFideId "24516740"]
[WhiteElo "1695"]
[BlackElo "2140"]
[Result "0-1"]
[Round "05"]
[TimeControl "180+1"]
[Date "2022.11.16"]
[WhiteClock "0:00:02"]
[BlackClock "0:00:21"]

1. c4 {[%clk 0:02:55]}  Nf6 {[%clk 0:02:54]} 2. Nc3 {[%clk 0:02:52]}  c6 {[%clk 0:02:52]} 3. g3 {[%clk 0:02:51]}  d5 {[%clk 0:02:52]} 4. cxd5 {[%clk 0:02:42]}  cxd5 {[%clk 0:02:53]} 5. d4 {[%clk 0:02:42]}  Nc6 {[%clk 0:02:53]} 6. Bg2 {[%clk 0:02:42]}  e6 {[%clk 0:02:51]} 7. Bg5 {[%clk 0:02:40]}  Be7 {[%clk 0:02:51]} 8. e3 {[%clk 0:02:40]}  h6 {[%clk 0:02:51]} 9. Bxf6 {[%clk 0:02:37]}  Bxf6 {[%clk 0:02:52]} 10. Nge2 {[%clk 0:02:37]}  O-O {[%clk 0:02:52]} 11. O-O {[%clk 0:02:36]}  Na5 {[%clk 0:02:48]} 12. Rc1 {[%clk 0:02:34]}  Nc4 {[%clk 0:02:49]} 13. b3 {[%clk 0:02:26]}  Nb6 {[%clk 0:02:47]} 14. Qc2 {[%clk 0:02:23]}  Bd7 {[%clk 0:02:44]} 15. Qb2 {[%clk 0:02:22]}  Rc8 {[%clk 0:02:38]} 16. a4 {[%clk 0:01:53]}  a5 {[%clk 0:02:24]} 17. Nf4 {[%clk 0:01:44]}  Be7 {[%clk 0:02:22]} 18. Nd3 {[%clk 0:01:43]}  Bd6 {[%clk 0:02:18]} 19. Rc2 {[%clk 0:01:35]}  Qe7 {[%clk 0:02:18]} 20. Rb1 {[%clk 0:00:53]}  Rc7 {[%clk 0:02:13]} 21. b4 {[%clk 0:00:52]}  Nc4 {[%clk 0:02:11]} 22. Qb3 {[%clk 0:00:50]}  axb4 {[%clk 0:02:08]} 23. Nxb4 {[%clk 0:00:49]}  Rfc8 {[%clk 0:02:07]} 24. Ncxd5 {[%clk 0:00:34]}  exd5 {[%clk 0:01:54]} 25. Nxd5 {[%clk 0:00:34]}  Qd8 {[%clk 0:01:37]} 26. Nxc7 {[%clk 0:00:32]}  Qxc7 {[%clk 0:01:38]} 27. Rbc1 {[%clk 0:00:27]}  Qb6 {[%clk 0:01:23]} 28. Qa2 {[%clk 0:00:17]}  Ba3 {[%clk 0:00:52]} 29. Rb1 {[%clk 0:00:12]}  Qa6 {[%clk 0:00:48]} 30. Bxb7 {[%clk 0:00:10]}  Qg6 {[%clk 0:00:32]} 31. Bxc8 {[%clk 0:00:10]}  Bxc8 {[%clk 0:00:33]} 32. Qxc4 {[%clk 0:00:10]}  Be6 {[%clk 0:00:30]} 33. Rb8+ {[%clk 0:00:09]}  Kh7 {[%clk 0:00:30]} 34. Qc3 {[%clk 0:00:07]}  Bd6 {[%clk 0:00:30]} 35. Rc1 {[%clk 0:00:06]}  Bxb8 {[%clk 0:00:30]} 36. Qb4 {[%clk 0:00:05]}  Bd5 {[%clk 0:00:27]} 37. Qc5 {[%clk 0:00:03]}  Qe4 {[%clk 0:00:27]} 38. Kf1 {[%clk 0:00:02]}  Qf3 {[%clk 0:00:23]} 39. Qc2+ {[%clk 0:00:01]}  Be4 {[%clk 0:00:21]} 40. Qb2 {[%clk 0:00:02]}  Ba7 {[%clk 0:00:21]} 41. Ke1 {[%clk 0:00:02]}  Bb6 {[%clk 0:00:21]} 42. Kd2 {[%clk 0:00:02]}  Ba5+ {[%clk 0:00:21]} 0-1


[Site "https://www.chess.com"]

[Event "Titled Tuesday Blitz November 15 Early 2022"]
[White "Sowul, Bartosz"]
[Black "Korchmar, Vasiliy"]
[WhiteFideId "1137590"]
[BlackFideId "24131750"]
[WhiteElo "2188"]
[BlackElo "2370"]
[Result "0-1"]
[Round "05"]
[TimeControl "180+1"]
[Date "2022.11.16"]
[WhiteClock "0:00:03"]
[BlackClock "0:00:15"]

1. e4 {[%clk 0:02:58]}  c5 {[%clk 0:02:59]} 2. Nc3 {[%clk 0:02:58]}  d6 {[%clk 0:02:59]} 3. d4 {[%clk 0:02:58]}  cxd4 {[%clk 0:02:59]} 4. Qxd4 {[%clk 0:02:58]}  Nc6 {[%clk 0:02:56]} 5. Qd2 {[%clk 0:02:59]}  g6 {[%clk 0:02:57]} 6. b3 {[%clk 0:02:59]}  Bh6 {[%clk 0:02:57]} 7. f4 {[%clk 0:02:59]}  Nf6 {[%clk 0:02:57]} 8. Bb2 {[%clk 0:02:59]}  O-O {[%clk 0:02:58]} 9. O-O-O {[%clk 0:02:59]}  a5 {[%clk 0:02:59]} 10. a4 {[%clk 0:02:59]}  Nb4 {[%clk 0:02:58]} 11. Nf3 {[%clk 0:02:51]}  Qb6 {[%clk 0:02:57]} 12. Kb1 {[%clk 0:02:48]}  Bg4 {[%clk 0:02:55]} 13. Bc4 {[%clk 0:02:46]}  Rac8 {[%clk 0:02:49]} 14. Rhf1 {[%clk 0:02:44]}  Rxc4 {[%clk 0:02:44]} 15. bxc4 {[%clk 0:02:44]}  Rc8 {[%clk 0:02:32]} 16. Qd4 {[%clk 0:02:39]}  Qxd4 {[%clk 0:02:16]} 17. Rxd4 {[%clk 0:02:36]}  Bxf4 {[%clk 0:02:16]} 18. h3 {[%clk 0:02:18]}  Bxf3 {[%clk 0:02:12]} 19. Rxf3 {[%clk 0:02:14]}  Be5 {[%clk 0:02:11]} 20. Nd5 {[%clk 0:02:09]}  Nfxd5 {[%clk 0:02:01]} 21. Rxd5 {[%clk 0:01:56]}  Nxd5 {[%clk 0:01:39]} 22. cxd5 {[%clk 0:00:45]}  Bxb2 {[%clk 0:01:37]} 23. Kxb2 {[%clk 0:00:46]}  Rc4 {[%clk 0:01:37]} 24. Rb3 {[%clk 0:00:38]}  Rxa4 {[%clk 0:01:37]} 25. e5 {[%clk 0:00:35]}  dxe5 {[%clk 0:00:38]} 26. Rxb7 {[%clk 0:00:35]}  Kf8 {[%clk 0:00:38]} 27. Kc3 {[%clk 0:00:21]}  Rd4 {[%clk 0:00:33]} 28. Rb5 {[%clk 0:00:14]}  a4 {[%clk 0:00:34]} 29. Ra5 {[%clk 0:00:13]}  f5 {[%clk 0:00:32]} 30. Ra8+ {[%clk 0:00:05]}  Kf7 {[%clk 0:00:32]} 31. Ra7 {[%clk 0:00:06]}  g5 {[%clk 0:00:22]} 32. Kb2 {[%clk 0:00:04]}  h5 {[%clk 0:00:18]} 33. Kc1 {[%clk 0:00:03]}  g4 {[%clk 0:00:16]} 34. hxg4 {[%clk 0:00:02]}  hxg4 {[%clk 0:00:17]} 35. c3 {[%clk 0:00:02]}  Rxd5 {[%clk 0:00:17]} 36. Rxa4 {[%clk 0:00:02]}  Rd3 {[%clk 0:00:16]} 37. Kc2 {[%clk 0:00:03]}  Rg3 {[%clk 0:00:17]} 38. Ra5 {[%clk 0:00:03]}  Rxg2+ {[%clk 0:00:17]} 39. Kd3 {[%clk 0:00:03]}  e4+ {[%clk 0:00:17]} 40. Ke3 {[%clk 0:00:04]}  Kf6 {[%clk 0:00:17]} 41. Ra6+ {[%clk 0:00:03]}  e6 {[%clk 0:00:17]} 42. Kf4 {[%clk 0:00:03]}  Rf2+ {[%clk 0:00:14]} 43. Kg3 {[%clk 0:00:02]}  Rf3+ {[%clk 0:00:15]} 44. Kh4 {[%clk 0:00:03]}  Rh3# {[%clk 0:00:15]} 0-1


[Site "https://www.chess.com"]

[Event "Titled Tuesday Blitz November 15 Early 2022"]
[White "Stankovic, Ivan G"]
[Black "Odegov, Artem"]
[WhiteFideId "902837"]
[BlackFideId "34183644"]
[WhiteElo "2226"]
[BlackElo "2298"]
[Result "1-0"]
[Round "05"]
[TimeControl "180+1"]
[Date "2022.11.16"]
[WhiteClock "0:00:37"]
[BlackClock "0:00:37"]

1. e4 {[%clk 0:03:00]}  e6 {[%clk 0:02:58]} 2. d3 {[%clk 0:02:59]}  d5 {[%clk 0:02:58]} 3. Nd2 {[%clk 0:02:58]}  c5 {[%clk 0:02:58]} 4. g3 {[%clk 0:02:57]}  Nc6 {[%clk 0:02:58]} 5. Bg2 {[%clk 0:02:56]}  Nf6 {[%clk 0:02:58]} 6. Ngf3 {[%clk 0:02:57]}  Be7 {[%clk 0:02:58]} 7. O-O {[%clk 0:02:57]}  O-O {[%clk 0:02:58]} 8. Re1 {[%clk 0:02:57]}  b5 {[%clk 0:02:58]} 9. e5 {[%clk 0:02:57]}  Nd7 {[%clk 0:02:58]} 10. Nf1 {[%clk 0:02:56]}  a5 {[%clk 0:02:56]} 11. h4 {[%clk 0:02:56]}  b4 {[%clk 0:02:55]} 12. N1h2 {[%clk 0:02:55]}  a4 {[%clk 0:02:53]} 13. a3 {[%clk 0:02:55]}  b3 {[%clk 0:02:52]} 14. c3 {[%clk 0:02:55]}  Ba6 {[%clk 0:02:51]} 15. h5 {[%clk 0:02:53]}  Qa5 {[%clk 0:02:48]} 16. Ng4 {[%clk 0:02:50]}  Qb5 {[%clk 0:02:45]} 17. Bf1 {[%clk 0:02:48]}  Rac8 {[%clk 0:02:38]} 18. h6 {[%clk 0:02:47]}  g6 {[%clk 0:02:38]} 19. Bf4 {[%clk 0:02:45]}  Qb6 {[%clk 0:02:33]} 20. Qd2 {[%clk 0:02:42]}  Nd8 {[%clk 0:02:12]} 21. Bg5 {[%clk 0:02:38]}  f6 {[%clk 0:02:09]} 22. exf6 {[%clk 0:02:34]}  Nxf6 {[%clk 0:02:10]} 23. Nfe5 {[%clk 0:01:57]}  Qd6 {[%clk 0:02:01]} 24. Bxf6 {[%clk 0:01:41]}  Bxf6 {[%clk 0:02:02]} 25. Nxf6+ {[%clk 0:01:42]}  Rxf6 {[%clk 0:02:02]} 26. Bh3 {[%clk 0:01:37]}  Nc6 {[%clk 0:01:57]} 27. d4 {[%clk 0:01:22]}  Na5 {[%clk 0:01:50]} 28. dxc5 {[%clk 0:01:09]}  Qxc5 {[%clk 0:01:42]} 29. Nd7 {[%clk 0:01:06]}  Qe7 {[%clk 0:01:33]} 30. Nxf6+ {[%clk 0:01:05]}  Qxf6 {[%clk 0:01:34]} 31. Bxe6+ {[%clk 0:01:05]}  Kf8 {[%clk 0:01:32]} 32. Bxc8 {[%clk 0:01:05]}  Bxc8 {[%clk 0:01:32]} 33. Qxd5 {[%clk 0:01:03]}  Nc6 {[%clk 0:01:31]} 34. Re3 {[%clk 0:00:53]}  Ne7 {[%clk 0:01:27]} 35. Qd8+ {[%clk 0:00:53]}  Kf7 {[%clk 0:01:24]} 36. Rxe7+ {[%clk 0:00:53]}  Qxe7 {[%clk 0:01:25]} 37. Qxc8 {[%clk 0:00:51]}  g5 {[%clk 0:01:15]} 38. Rd1 {[%clk 0:00:50]}  Kg6 {[%clk 0:01:09]} 39. Qd7 {[%clk 0:00:44]}  Qe4 {[%clk 0:00:37]} 40. Rd6+ {[%clk 0:00:40]}  Kh5 {[%clk 0:00:37]} 41. Qh3+ {[%clk 0:00:40]}  Qh4 {[%clk 0:00:37]} 42. g4# {[%clk 0:00:37]} 1-0


[Site "https://www.chess.com"]

[Event "Titled Tuesday Blitz November 15 Early 2022"]
[White "Stijve, Theo"]
[Black "Al-Tarboush, Ward"]
[WhiteFideId "1331132"]
[BlackFideId "7601450"]
[WhiteElo "2256"]
[BlackElo "2273"]
[Result "0-1"]
[Round "05"]
[TimeControl "180+1"]
[Date "2022.11.16"]
[WhiteClock "0:00:52"]
[BlackClock "0:01:22"]

1. e4 {[%clk 0:03:00]}  b6 {[%clk 0:02:45]} 2. d4 {[%clk 0:03:00]}  Bb7 {[%clk 0:02:45]} 3. Nc3 {[%clk 0:02:55]}  e6 {[%clk 0:02:46]} 4. Nf3 {[%clk 0:02:51]}  Bb4 {[%clk 0:02:46]} 5. Bd3 {[%clk 0:02:50]}  Nf6 {[%clk 0:02:46]} 6. e5 {[%clk 0:02:48]}  Ne4 {[%clk 0:02:46]} 7. Bd2 {[%clk 0:02:40]}  Nxd2 {[%clk 0:02:31]} 8. Qxd2 {[%clk 0:02:39]}  c5 {[%clk 0:02:30]} 9. a3 {[%clk 0:02:31]}  cxd4 {[%clk 0:02:24]} 10. axb4 {[%clk 0:02:30]}  dxc3 {[%clk 0:02:23]} 11. Qxc3 {[%clk 0:02:22]}  Bxf3 {[%clk 0:02:23]} 12. gxf3 {[%clk 0:02:22]}  Nc6 {[%clk 0:02:19]} 13. b5 {[%clk 0:02:20]}  Ne7 {[%clk 0:02:18]} 14. Be4 {[%clk 0:02:15]}  Rc8 {[%clk 0:02:17]} 15. Qd3 {[%clk 0:02:11]}  Qc7 {[%clk 0:02:15]} 16. f4 {[%clk 0:02:07]}  f5 {[%clk 0:02:13]} 17. exf6 {[%clk 0:02:02]}  gxf6 {[%clk 0:02:14]} 18. f5 {[%clk 0:01:51]}  exf5 {[%clk 0:02:13]} 19. Bf3 {[%clk 0:01:45]}  Qxc2 {[%clk 0:02:11]} 20. Qxc2 {[%clk 0:01:36]}  Rxc2 {[%clk 0:02:12]} 21. Rxa7 {[%clk 0:01:37]}  Kf7 {[%clk 0:01:45]} 22. Rxd7 {[%clk 0:01:33]}  Ke6 {[%clk 0:01:44]} 23. Rd2 {[%clk 0:01:28]}  Rc1+ {[%clk 0:01:39]} 24. Ke2 {[%clk 0:01:26]}  Rxh1 {[%clk 0:01:37]} 25. Bxh1 {[%clk 0:01:27]}  Ng6 {[%clk 0:01:33]} 26. Rc2 {[%clk 0:01:23]}  Rd8 {[%clk 0:01:28]} 27. Ke3 {[%clk 0:01:16]}  Ne5 {[%clk 0:01:26]} 28. h3 {[%clk 0:01:14]}  Rd3+ {[%clk 0:01:25]} 29. Ke2 {[%clk 0:01:11]}  Rxh3 {[%clk 0:01:26]} 30. f4 {[%clk 0:01:11]}  Rh2+ {[%clk 0:01:24]} 31. Kf1 {[%clk 0:00:52]}  Rxc2 {[%clk 0:01:22]} 0-1


[Site "https://www.chess.com"]